[Event "*** Titled Tuesday Blitz"]
[Site "Chess.com"]
[Date "2020.04.28"]
[Round "7"]
[White "Kaua18"]
[Black "Morshynska"]
[Result "0-1"]
[WhiteElo "2233"]
[BlackElo "2112"]
[TimeControl "180+1"]
[EndTime "11:19:19 PDT"]
[Termination "Morshynska won on time"]

1. e4 {[%clk 0:03:00.9]} 1... c5 {[%clk 0:02:58.1]} 2. Nf3 {[%clk 0:03:01.2]}
2... d6 {[%clk 0:02:57.3]} 3. d4 {[%clk 0:03:01.7]} 3... cxd4 {[%clk 0:02:58.2]}
4. Nxd4 {[%clk 0:03:02.6]} 4... Nf6 {[%clk 0:02:56.7]} 5. Nc3 {[%clk 0:03:02.6]}
5... a6 {[%clk 0:02:56.6]} 6. Be2 {[%clk 0:03:02.2]} 6... e5 {[%clk 0:02:56]} 7.
Nb3 {[%clk 0:03:01.9]} 7... Be7 {[%clk 0:02:56.4]} 8. O-O {[%clk 0:03:01.6]}
8... Be6 {[%clk 0:02:56.4]} 9. Re1 {[%clk 0:03:02.5]} 9... O-O {[%clk 0:02:54]}
10. Bf3 {[%clk 0:03:00.2]} 10... a5 {[%clk 0:02:46.7]} 11. a4 {[%clk 0:02:51.9]}
11... Nbd7 {[%clk 0:02:31.5]} 12. Nb5 {[%clk 0:02:47]} 12... Nc5 {[%clk
0:02:27.6]} 13. Bg5 {[%clk 0:02:31.7]} 13... Nxb3 {[%clk 0:01:48]} 14. cxb3
{[%clk 0:02:32.6]} 14... Qd7 {[%clk 0:01:25.5]} 15. Bxf6 {[%clk 0:02:13.5]}
15... gxf6 {[%clk 0:01:26.4]} 16. h3 {[%clk 0:02:11.7]} 16... f5 {[%clk
0:01:14.2]} 17. exf5 {[%clk 0:01:53.4]} 17... Bxf5 {[%clk 0:01:15.1]} 18. Bd5
{[%clk 0:01:48.8]} 18... Kh8 {[%clk 0:01:04.8]} 19. Qf3 {[%clk 0:01:48.7]} 19...
Rab8 {[%clk 0:01:00.5]} 20. Rac1 {[%clk 0:01:45.2]} 20... Bd8 {[%clk 0:00:32.9]}
21. Red1 {[%clk 0:01:04.8]} 21... Bg6 {[%clk 0:00:18.6]} 22. g4 {[%clk
0:00:56.3]} 22... f5 {[%clk 0:00:16.8]} 23. Qg2 {[%clk 0:00:34.1]} 23... Bb6
{[%clk 0:00:15.5]} 24. Bf3 {[%clk 0:00:26.7]} 24... e4 {[%clk 0:00:14.3]} 25.
Be2 {[%clk 0:00:27]} 25... fxg4 {[%clk 0:00:13.1]} 26. Bxg4 {[%clk 0:00:27.3]}
26... Qg7 {[%clk 0:00:11.4]} 27. Rf1 {[%clk 0:00:14.7]} 27... e3 {[%clk
0:00:11.3]} 28. Nxd6 {[%clk 0:00:10.5]} 28... exf2+ {[%clk 0:00:10.9]} 29. Kh1
{[%clk 0:00:11.1]} 29... Bc7 {[%clk 0:00:11]} 30. Ne4 {[%clk 0:00:06.7]} 30...
Qe5 {[%clk 0:00:10.4]} 31. Nxf2 {[%clk 0:00:05.1]} 31... Bb6 {[%clk 0:00:09.1]}
32. Nd3 {[%clk 0:00:04.7]} 32... Bxd3 {[%clk 0:00:08.8]} 33. Rfe1 {[%clk
0:00:04.7]} 33... Qd6 {[%clk 0:00:08.2]} 34. Rcd1 {[%clk 0:00:03.8]} 34... Bc7
{[%clk 0:00:07.5]} 35. Be2 {[%clk 0:00:04]} 35... Qc5 {[%clk 0:00:04.4]} 36.
Rxd3 {[%clk 0:00:03.5]} 36... Rbe8 {[%clk 0:00:04]} 37. Rg3 {[%clk 0:00:03.1]}
37... Bxg3 {[%clk 0:00:03]} 38. Qxg3 {[%clk 0:00:04]} 38... Qf2 {[%clk
0:00:03.1]} 39. Qxf2 {[%clk 0:00:04]} 39... Rxf2 {[%clk 0:00:04]} 40. Kg1 {[%clk
0:00:02.9]} 40... Rexe2 {[%clk 0:00:03.5]} 41. Rc1 {[%clk 0:00:02.8]} 41... Rg2+
{[%clk 0:00:03.6]} 42. Kf1 {[%clk 0:00:02.9]} 42... Rgf2+ {[%clk 0:00:03.8]} 43.
Kg1 {[%clk 0:00:03.1]} 43... Rc2 {[%clk 0:00:04.4]} 44. Rd1 {[%clk 0:00:03]}
44... Rfd2 {[%clk 0:00:04.4]} 45. Re1 {[%clk 0:00:03.3]} 45... Rxb2 {[%clk
0:00:04.9]} 46. Re8+ {[%clk 0:00:04.2]} 46... Kg7 {[%clk 0:00:05.6]} 47. Re7+
{[%clk 0:00:05]} 47... Kf6 {[%clk 0:00:06.5]} 48. Re1 {[%clk 0:00:05.2]} 48...
Rxb3 {[%clk 0:00:06.2]} 49. Rf1+ {[%clk 0:00:06.1]} 49... Ke5 {[%clk 0:00:05.9]}
50. Rc1 {[%clk 0:00:07]} 50... Kd4 {[%clk 0:00:06.2]} 51. Rc7 {[%clk 0:00:07.3]}
51... Kd3 {[%clk 0:00:06.7]} 52. Re7 {[%clk 0:00:08.2]} 52... Kc2 {[%clk
0:00:07.5]} 53. Rd7 {[%clk 0:00:09]} 53... Rc3 {[%clk 0:00:08.4]} 54. Rc7 {[%clk
0:00:09.8]} 54... Rxc7 {[%clk 0:00:07.4]} 0-1

[Event "*** Titled Tuesday Blitz"]
[Site "Chess.com"]
[Date "2020.04.28"]
[Round "7"]
[White "Antelacus"]
[Black "GracefulYear"]
[Result "1/2-1/2"]
[WhiteElo "2325"]
[BlackElo "2450"]
[TimeControl "180+1"]
[EndTime "11:19:22 PDT"]
[Termination "Game drawn - insufficient material"]

1. d4 {[%clk 0:03:00.9]} 1... g6 {[%clk 0:02:59.9]} 2. e4 {[%clk 0:02:59.6]}
2... Bg7 {[%clk 0:03:00.3]} 3. Nc3 {[%clk 0:02:58.9]} 3... c6 {[%clk 0:03:00.4]}
4. Nf3 {[%clk 0:02:57.3]} 4... d5 {[%clk 0:03:00.5]} 5. e5 {[%clk 0:02:54.7]}
5... Bg4 {[%clk 0:02:59.4]} 6. Be2 {[%clk 0:02:53.3]} 6... e6 {[%clk 0:02:59.3]}
7. O-O {[%clk 0:02:52.4]} 7... Ne7 {[%clk 0:02:58.6]} 8. h3 {[%clk 0:02:51.5]}
8... Bxf3 {[%clk 0:02:58.5]} 9. Bxf3 {[%clk 0:02:51.9]} 9... O-O {[%clk
0:02:58.9]} 10. Bg5 {[%clk 0:02:47.7]} 10... Nd7 {[%clk 0:02:58.4]} 11. Qd2
{[%clk 0:02:45.6]} 11... Re8 {[%clk 0:02:56.8]} 12. Ne2 {[%clk 0:02:39]} 12...
Qc7 {[%clk 0:02:53.1]} 13. Ng3 {[%clk 0:02:36]} 13... Nf8 {[%clk 0:02:48.6]} 14.
h4 {[%clk 0:02:34.4]} 14... Nf5 {[%clk 0:02:48.4]} 15. Nxf5 {[%clk 0:02:33.5]}
15... exf5 {[%clk 0:02:49.3]} 16. h5 {[%clk 0:02:30.2]} 16... Ne6 {[%clk
0:02:49.2]} 17. Bh6 {[%clk 0:02:28.7]} 17... Bh8 {[%clk 0:02:49]} 18. hxg6
{[%clk 0:02:27.3]} 18... fxg6 {[%clk 0:02:49.9]} 19. c3 {[%clk 0:02:25.3]} 19...
Rad8 {[%clk 0:02:45.2]} 20. Rae1 {[%clk 0:02:22.7]} 20... Qf7 {[%clk 0:02:44]}
21. Bd1 {[%clk 0:02:15.1]} 21... f4 {[%clk 0:02:08.6]} 22. g3 {[%clk 0:02:08.2]}
22... g5 {[%clk 0:01:53.1]} 23. Qe2 {[%clk 0:02:01.7]} 23... Qg6 {[%clk
0:01:42.7]} 24. Qh5 {[%clk 0:01:58.4]} 24... Rd7 {[%clk 0:01:29.4]} 25. Bg4
{[%clk 0:01:53]} 25... Rf7 {[%clk 0:01:26.8]} 26. Kh2 {[%clk 0:01:39]} 26... Bg7
{[%clk 0:00:42.7]} 27. Bxg7 {[%clk 0:01:38]} 27... Kxg7 {[%clk 0:00:41.4]} 28.
Qxg6+ {[%clk 0:01:34]} 28... Kxg6 {[%clk 0:00:41.6]} 29. Bxe6 {[%clk 0:01:30.7]}
29... Rxe6 {[%clk 0:00:41.2]} 30. gxf4 {[%clk 0:01:18.8]} 30... Rxf4 {[%clk
0:00:42.1]} 31. Re3 {[%clk 0:01:13.6]} 31... Kf5 {[%clk 0:00:41.1]} 32. Rh3
{[%clk 0:01:10.7]} 32... h6 {[%clk 0:00:40.2]} 33. Kg2 {[%clk 0:01:09.2]} 33...
c5 {[%clk 0:00:37.5]} 34. Rfh1 {[%clk 0:01:07.4]} 34... cxd4 {[%clk 0:00:31.5]}
35. cxd4 {[%clk 0:01:07.2]} 35... Rxd4 {[%clk 0:00:30.9]} 36. Rxh6 {[%clk
0:01:06.8]} 36... Rxe5 {[%clk 0:00:30.7]} 37. Rh7 {[%clk 0:01:01.8]} 37... Rg4+
{[%clk 0:00:29.9]} 38. Kf3 {[%clk 0:00:59]} 38... Rf4+ {[%clk 0:00:28.7]} 39.
Kg2 {[%clk 0:00:58]} 39... Rb4 {[%clk 0:00:26.3]} 40. b3 {[%clk 0:00:56.8]}
40... Re6 {[%clk 0:00:22.9]} 41. Rd1 {[%clk 0:00:53.6]} 41... Ke5 {[%clk
0:00:20.9]} 42. Rd7 {[%clk 0:00:52.1]} 42... d4 {[%clk 0:00:18.6]} 43. Kf3
{[%clk 0:00:49.1]} 43... Rf6+ {[%clk 0:00:18.2]} 44. Ke2 {[%clk 0:00:48.3]}
44... a6 {[%clk 0:00:18.1]} 45. Re7+ {[%clk 0:00:46.8]} 45... Kd6 {[%clk
0:00:17.9]} 46. Rg7 {[%clk 0:00:45.6]} 46... Rf5 {[%clk 0:00:17.3]} 47. Rd3
{[%clk 0:00:40.5]} 47... Ke5 {[%clk 0:00:17]} 48. Re7+ {[%clk 0:00:37.8]} 48...
Kf6 {[%clk 0:00:17]} 49. Rd7 {[%clk 0:00:36.8]} 49... Ke6 {[%clk 0:00:16.9]} 50.
R7xd4 {[%clk 0:00:34.5]} 50... Re5+ {[%clk 0:00:17.1]} 51. Kd2 {[%clk
0:00:33.4]} 51... Rxd4 {[%clk 0:00:17.3]} 52. Rxd4 {[%clk 0:00:33.3]} 52... Rd5
{[%clk 0:00:18.2]} 53. Ke3 {[%clk 0:00:32]} 53... Ke5 {[%clk 0:00:17.9]} 54.
Rxd5+ {[%clk 0:00:28.4]} 54... Kxd5 {[%clk 0:00:18.8]} 55. Kf3 {[%clk
0:00:27.9]} 55... Ke5 {[%clk 0:00:18.9]} 56. Kg4 {[%clk 0:00:28.1]} 56... Ke4
{[%clk 0:00:17.6]} 57. Kxg5 {[%clk 0:00:24.4]} 57... Kf3 {[%clk 0:00:17.4]} 58.
Kf5 {[%clk 0:00:24.2]} 58... Kxf2 {[%clk 0:00:17.7]} 59. Ke5 {[%clk 0:00:24.3]}
59... Ke2 {[%clk 0:00:18.1]} 60. Kd6 {[%clk 0:00:23.1]} 60... Kd2 {[%clk
0:00:18.5]} 61. Kc7 {[%clk 0:00:23.2]} 61... Kc3 {[%clk 0:00:18.7]} 62. Kxb7
{[%clk 0:00:22.8]} 62... a5 {[%clk 0:00:18.2]} 63. Kb6 {[%clk 0:00:22.7]} 63...
Kb4 {[%clk 0:00:15.8]} 64. Ka6 {[%clk 0:00:16.5]} 64... a4 {[%clk 0:00:15.8]}
65. bxa4 {[%clk 0:00:16.2]} 65... Kxa4 {[%clk 0:00:16.7]} 66. a3 {[%clk
0:00:15.9]} 66... Kxa3 {[%clk 0:00:17.6]} 1/2-1/2

[Event "*** Titled Tuesday Blitz"]
[Site "Chess.com"]
[Date "2020.04.28"]
[Round "7"]
[White "kuli4ik"]
[Black "Hikaru"]
[Result "0-1"]
[WhiteElo "2717"]
[BlackElo "3234"]
[TimeControl "180+1"]
[EndTime "11:19:23 PDT"]
[Termination "Hikaru won by resignation"]

1. Nf3 {[%clk 0:03:00.9]} 1... d5 {[%clk 0:02:57.4]} 2. d4 {[%clk 0:03:00.3]}
2... e6 {[%clk 0:02:55.6]} 3. Bf4 {[%clk 0:02:59.8]} 3... g6 {[%clk 0:02:44.1]}
4. e3 {[%clk 0:02:59]} 4... Bg7 {[%clk 0:02:44.2]} 5. c4 {[%clk 0:02:57]} 5...
Nf6 {[%clk 0:02:44.2]} 6. Nc3 {[%clk 0:02:56.4]} 6... O-O {[%clk 0:02:44.2]} 7.
h3 {[%clk 0:02:49]} 7... c5 {[%clk 0:02:43.7]} 8. dxc5 {[%clk 0:02:17.9]} 8...
Qa5 {[%clk 0:02:43.4]} 9. Qa4 {[%clk 0:02:14.2]} 9... Qxc5 {[%clk 0:02:39.6]}
10. Qb5 {[%clk 0:01:55.6]} 10... Qe7 {[%clk 0:02:33.2]} 11. cxd5 {[%clk
0:01:55.1]} 11... Nxd5 {[%clk 0:02:26.7]} 12. Nxd5 {[%clk 0:01:52.3]} 12... exd5
{[%clk 0:02:26.9]} 13. Be2 {[%clk 0:01:49.4]} 13... a6 {[%clk 0:02:21.4]} 14.
Qb3 {[%clk 0:01:42]} 14... Nc6 {[%clk 0:02:21.2]} 15. O-O {[%clk 0:01:37.2]}
15... d4 {[%clk 0:02:21.5]} 16. Rfe1 {[%clk 0:01:23.7]} 16... Be6 {[%clk
0:02:21.1]} 17. Qb6 {[%clk 0:01:22.7]} 17... Rfd8 {[%clk 0:01:51.6]} 18. Bg5
{[%clk 0:00:46.2]} 18... f6 {[%clk 0:01:45.8]} 19. exd4 {[%clk 0:00:46.5]} 19...
Qb4 {[%clk 0:01:37.8]} 20. Qxb4 {[%clk 0:00:37.4]} 20... Nxb4 {[%clk 0:01:38.7]}
21. Bd1 {[%clk 0:00:37.6]} 21... Bd5 {[%clk 0:01:32.5]} 22. Be3 {[%clk
0:00:34.1]} 22... Nxa2 {[%clk 0:01:29.2]} 23. Bd2 {[%clk 0:00:28.5]} 23... Bf8
{[%clk 0:01:27.3]} 24. Nh2 {[%clk 0:00:26.3]} 24... Nb4 {[%clk 0:01:22.5]} 25.
Ng4 {[%clk 0:00:26.2]} 25... Kf7 {[%clk 0:01:22]} 26. Ne3 {[%clk 0:00:21.5]}
26... Be6 {[%clk 0:01:21.7]} 27. Bc3 {[%clk 0:00:17.8]} 27... Nd5 {[%clk
0:01:18.3]} 28. Bf3 {[%clk 0:00:17.6]} 28... Rac8 {[%clk 0:01:16.7]} 29. Rec1
{[%clk 0:00:16.8]} 29... Rd7 {[%clk 0:01:08.6]} 30. Ba5 {[%clk 0:00:14.3]} 30...
Rxc1+ {[%clk 0:01:04.9]} 31. Rxc1 {[%clk 0:00:15.2]} 31... Bh6 {[%clk
0:01:05.1]} 32. Bd2 {[%clk 0:00:14.4]} 32... Ne7 {[%clk 0:01:05]} 33. Bc3 {[%clk
0:00:13.5]} 33... Bd5 {[%clk 0:00:55.2]} 34. Be2 {[%clk 0:00:09.7]} 34... Nf5
{[%clk 0:00:47.8]} 35. Bd2 {[%clk 0:00:05.8]} 35... Nxd4 {[%clk 0:00:45.9]} 36.
Bd1 {[%clk 0:00:04.8]} 36... Bb3 {[%clk 0:00:42.7]} 37. Kf1 {[%clk 0:00:03.2]}
37... Bxd1 {[%clk 0:00:40.8]} 38. Rxd1 {[%clk 0:00:03.6]} 38... Nb3 {[%clk
0:00:39.9]} 39. Bc3 {[%clk 0:00:04.1]} 39... Rxd1+ {[%clk 0:00:39.8]} 40. Nxd1
{[%clk 0:00:05]} 40... Ke6 {[%clk 0:00:40.3]} 41. Ke2 {[%clk 0:00:05.4]} 41...
Nc1+ {[%clk 0:00:40.6]} 42. Kf3 {[%clk 0:00:05.1]} 42... f5 {[%clk 0:00:40.9]}
43. g4 {[%clk 0:00:04.5]} 43... Nd3 {[%clk 0:00:38.4]} 44. Ne3 {[%clk
0:00:03.5]} 44... fxg4+ {[%clk 0:00:30.5]} 45. Nxg4 {[%clk 0:00:03.3]} 45... Bc1
{[%clk 0:00:30.5]} 46. b3 {[%clk 0:00:02.5]} 46... Nf4 {[%clk 0:00:28.6]} 47. h4
{[%clk 0:00:01.8]} 47... Nd5 {[%clk 0:00:29.2]} 48. Bd4 {[%clk 0:00:01.1]} 48...
Ba3 {[%clk 0:00:29.3]} 49. Ke4 {[%clk 0:00:01.3]} 49... Be7 {[%clk 0:00:29.2]}
50. f3 {[%clk 0:00:00.2]} 50... Bxh4 {[%clk 0:00:28.9]} 51. Ne5 {[%clk
0:00:01.1]} 51... Nf6+ {[%clk 0:00:28.4]} 52. Kd3 {[%clk 0:00:01.2]} 52... Nd7
{[%clk 0:00:27.3]} 53. Nc4 {[%clk 0:00:02.1]} 53... Bd8 {[%clk 0:00:27]} 54. Ne3
{[%clk 0:00:02.6]} 54... h5 {[%clk 0:00:27]} 55. Ng2 {[%clk 0:00:03.1]} 55... g5
{[%clk 0:00:26.9]} 56. f4 {[%clk 0:00:03]} 56... h4 {[%clk 0:00:25.2]} 57. fxg5
{[%clk 0:00:03.2]} 57... Bxg5 {[%clk 0:00:24.8]} 58. Ne1 {[%clk 0:00:03.2]}
58... h3 {[%clk 0:00:25]} 59. Nf3 {[%clk 0:00:04.1]} 59... Bf4 {[%clk
0:00:25.4]} 60. Bg1 {[%clk 0:00:05]} 60... Ne5+ {[%clk 0:00:25.6]} 61. Ke4
{[%clk 0:00:04.4]} 61... Nxf3 {[%clk 0:00:25.7]} 62. Kxf3 {[%clk 0:00:05.3]}
62... h2 {[%clk 0:00:25.9]} 63. Bxh2 {[%clk 0:00:06.2]} 63... Bxh2 {[%clk
0:00:26.7]} 64. Ke4 {[%clk 0:00:07]} 64... Kd6 {[%clk 0:00:27.2]} 0-1

[Event "*** Titled Tuesday Blitz"]
[Site "Chess.com"]
[Date "2020.04.28"]
[Round "7"]
[White "Trankuilizer"]
[Black "Murad_Ibrahimli"]
[Result "1-0"]
[WhiteElo "2521"]
[BlackElo "2746"]
[TimeControl "180+1"]
[EndTime "11:19:27 PDT"]
[Termination "Trankuilizer won by resignation"]

1. e4 {[%clk 0:03:00.9]} 1... c5 {[%clk 0:02:57.4]} 2. c3 {[%clk 0:03:00.4]}
2... d5 {[%clk 0:02:56.9]} 3. exd5 {[%clk 0:02:59.8]} 3... Qxd5 {[%clk
0:02:57.8]} 4. d4 {[%clk 0:02:58.3]} 4... g6 {[%clk 0:02:57.7]} 5. Nf3 {[%clk
0:02:56.1]} 5... Bg7 {[%clk 0:02:57.9]} 6. Na3 {[%clk 0:02:54.8]} 6... cxd4
{[%clk 0:02:42.7]} 7. Bc4 {[%clk 0:02:46.7]} 7... Qa5 {[%clk 0:02:36.2]} 8. Qb3
{[%clk 0:02:29.2]} 8... e6 {[%clk 0:02:35.9]} 9. Nb5 {[%clk 0:02:29.6]} 9... Nc6
{[%clk 0:01:30.2]} 10. Nd6+ {[%clk 0:02:17.9]} 10... Kf8 {[%clk 0:01:28]} 11.
O-O {[%clk 0:01:53.8]} 11... Qc7 {[%clk 0:01:07.1]} 12. Nb5 {[%clk 0:01:10.5]}
12... Qd8 {[%clk 0:01:03]} 13. Bg5 {[%clk 0:01:07.3]} 13... Nf6 {[%clk
0:00:57.8]} 14. Rad1 {[%clk 0:01:03.4]} 14... a6 {[%clk 0:00:47.2]} 15. Nbxd4
{[%clk 0:01:03]} 15... Nxd4 {[%clk 0:00:45.9]} 16. Nxd4 {[%clk 0:01:02.9]} 16...
Qc7 {[%clk 0:00:45.7]} 17. Bh4 {[%clk 0:00:55.3]} 17... b5 {[%clk 0:00:32.9]}
18. Be2 {[%clk 0:00:55]} 18... Bb7 {[%clk 0:00:32.9]} 19. Bg3 {[%clk 0:00:54.9]}
19... Qc8 {[%clk 0:00:32.5]} 20. a4 {[%clk 0:00:50]} 20... bxa4 {[%clk
0:00:29.2]} 21. Qxa4 {[%clk 0:00:49.8]} 21... h5 {[%clk 0:00:28.5]} 22. Bf3
{[%clk 0:00:47]} 22... h4 {[%clk 0:00:26.2]} 23. Be5 {[%clk 0:00:46.5]} 23... h3
{[%clk 0:00:20.6]} 24. Qb4+ {[%clk 0:00:31.8]} 24... Kg8 {[%clk 0:00:19.2]} 25.
Qxb7 {[%clk 0:00:31.8]} 25... Qxb7 {[%clk 0:00:17.6]} 26. Bxb7 {[%clk
0:00:31.3]} 26... Re8 {[%clk 0:00:18.3]} 27. g3 {[%clk 0:00:29.6]} 27... Ng4
{[%clk 0:00:18.2]} 28. Bxg7 {[%clk 0:00:28.8]} 28... Kxg7 {[%clk 0:00:18.8]} 29.
Bxa6 {[%clk 0:00:25.9]} 29... Rb8 {[%clk 0:00:18.6]} 30. b4 {[%clk 0:00:25]}
30... Rb6 {[%clk 0:00:17.1]} 31. Be2 {[%clk 0:00:24.2]} 31... Nf6 {[%clk
0:00:15.2]} 32. b5 {[%clk 0:00:24.4]} 32... e5 {[%clk 0:00:13.7]} 33. Nc6 {[%clk
0:00:23.9]} 33... Re8 {[%clk 0:00:13.2]} 34. c4 {[%clk 0:00:23.6]} 34... Ne4
{[%clk 0:00:12.8]} 35. Rfe1 {[%clk 0:00:17.7]} 35... Nc3 {[%clk 0:00:11.6]} 36.
Rc1 {[%clk 0:00:16.9]} 36... Na4 {[%clk 0:00:10.6]} 37. c5 {[%clk 0:00:15.6]}
37... Rb7 {[%clk 0:00:09.8]} 38. Rc4 {[%clk 0:00:15.6]} 38... Ra8 {[%clk
0:00:05.9]} 39. Ra1 {[%clk 0:00:15]} 39... Rxb5 {[%clk 0:00:03.9]} 40. Rcxa4
{[%clk 0:00:15.2]} 40... Rxa4 {[%clk 0:00:03.5]} 41. Rxa4 {[%clk 0:00:14.8]}
41... Rxc5 {[%clk 0:00:04.4]} 42. Rc4 {[%clk 0:00:10]} 42... Rd5 {[%clk
0:00:04.1]} 43. Bf1 {[%clk 0:00:09.6]} 43... f5 {[%clk 0:00:03.5]} 44. Nb4
{[%clk 0:00:08.6]} 44... Rd1 {[%clk 0:00:02.9]} 45. Rc6 {[%clk 0:00:07.3]} 45...
e4 {[%clk 0:00:02.7]} 46. Re6 {[%clk 0:00:07.5]} 46... g5 {[%clk 0:00:02.2]} 47.
Nc2 {[%clk 0:00:06.2]} 47... Kf7 {[%clk 0:00:01.8]} 48. Re5 {[%clk 0:00:05]}
48... Kf6 {[%clk 0:00:01.9]} 49. Rxf5+ {[%clk 0:00:05.3]} 49... Kxf5 {[%clk
0:00:01.8]} 50. Ne3+ {[%clk 0:00:05.6]} 1-0

[Event "*** Titled Tuesday Blitz"]
[Site "Chess.com"]
[Date "2020.04.28"]
[Round "7"]
[White "AustrianFalcon"]
[Black "Tsubasa"]
[Result "1/2-1/2"]
[WhiteElo "2561"]
[BlackElo "2418"]
[TimeControl "180+1"]
[EndTime "11:19:27 PDT"]
[Termination "Game drawn - insufficient material"]

1. e4 {[%clk 0:03:00.9]} 1... e6 {[%clk 0:03:00.1]} 2. d4 {[%clk 0:02:56.9]}
2... d5 {[%clk 0:02:59.8]} 3. Nc3 {[%clk 0:02:56.5]} 3... Nc6 {[%clk 0:02:58.6]}
4. e5 {[%clk 0:02:51.3]} 4... f6 {[%clk 0:02:50.2]} 5. f4 {[%clk 0:02:46.7]}
5... Nh6 {[%clk 0:02:42.3]} 6. Nf3 {[%clk 0:02:43.7]} 6... Bb4 {[%clk
0:02:39.8]} 7. a3 {[%clk 0:02:33.1]} 7... Bxc3+ {[%clk 0:02:38.8]} 8. bxc3
{[%clk 0:02:34]} 8... O-O {[%clk 0:02:37.3]} 9. Bd3 {[%clk 0:02:27.9]} 9... Bd7
{[%clk 0:02:35.4]} 10. O-O {[%clk 0:02:20.3]} 10... f5 {[%clk 0:02:15.6]} 11. h3
{[%clk 0:02:13.3]} 11... Na5 {[%clk 0:02:08]} 12. g4 {[%clk 0:02:00.7]} 12...
Nc4 {[%clk 0:01:58.2]} 13. Ng5 {[%clk 0:01:54.6]} 13... b5 {[%clk 0:01:38.2]}
14. Qf3 {[%clk 0:01:45.7]} 14... Qe7 {[%clk 0:01:34]} 15. Qg3 {[%clk 0:01:40.8]}
15... c5 {[%clk 0:01:27.7]} 16. a4 {[%clk 0:01:20.3]} 16... cxd4 {[%clk
0:01:06.9]} 17. cxd4 {[%clk 0:01:17.7]} 17... b4 {[%clk 0:01:05.1]} 18. Nf3
{[%clk 0:01:05.4]} 18... Rab8 {[%clk 0:00:55.2]} 19. Kh2 {[%clk 0:00:47.1]}
19... a5 {[%clk 0:00:46]} 20. Rg1 {[%clk 0:00:44.7]} 20... Kh8 {[%clk
0:00:39.5]} 21. Nh4 {[%clk 0:00:39.2]} 21... b3 {[%clk 0:00:28.3]} 22. Bxc4
{[%clk 0:00:32.8]} 22... b2 {[%clk 0:00:25.2]} 23. Bxb2 {[%clk 0:00:30.4]} 23...
Rxb2 {[%clk 0:00:25.6]} 24. Bb3 {[%clk 0:00:28.6]} 24... fxg4 {[%clk 0:00:19.8]}
25. hxg4 {[%clk 0:00:26.8]} 25... Qb4 {[%clk 0:00:19.1]} 26. Raf1 {[%clk
0:00:24.2]} 26... Qxd4 {[%clk 0:00:18.1]} 27. Rg2 {[%clk 0:00:17]} 27... Bxa4
{[%clk 0:00:17]} 28. f5 {[%clk 0:00:12.9]} 28... Bxb3 {[%clk 0:00:14.8]} 29.
cxb3 {[%clk 0:00:09.6]} 29... Rxg2+ {[%clk 0:00:14.2]} 30. Kxg2 {[%clk
0:00:06.7]} 30... Qe4+ {[%clk 0:00:11.2]} 31. Kh3 {[%clk 0:00:06.4]} 31... exf5
{[%clk 0:00:10.2]} 32. gxf5 {[%clk 0:00:06.3]} 32... Qe2 {[%clk 0:00:09.7]} 33.
Rf2 {[%clk 0:00:03.9]} 33... Qh5 {[%clk 0:00:09.6]} 34. f6 {[%clk 0:00:04.2]}
34... gxf6 {[%clk 0:00:06.8]} 35. exf6 {[%clk 0:00:05.1]} 35... Rg8 {[%clk
0:00:06]} 36. Qf4 {[%clk 0:00:05.5]} 36... Qg4+ {[%clk 0:00:02.2]} 37. Qxg4
{[%clk 0:00:05.6]} 37... Nxg4 {[%clk 0:00:02.7]} 38. Rf4 {[%clk 0:00:04.8]}
38... Ne5 {[%clk 0:00:02.4]} 39. Rf5 {[%clk 0:00:04.2]} 39... Ng6 {[%clk
0:00:02]} 40. Nxg6+ {[%clk 0:00:03.3]} 40... hxg6 {[%clk 0:00:02]} 41. Rxd5
{[%clk 0:00:02.9]} 41... Rb8 {[%clk 0:00:02.2]} 42. Rxa5 {[%clk 0:00:02.5]}
42... Rxb3+ {[%clk 0:00:02]} 43. Kg4 {[%clk 0:00:03.2]} 43... Kg8 {[%clk
0:00:01.8]} 44. Kg5 {[%clk 0:00:03.1]} 44... Rg3+ {[%clk 0:00:01.9]} 45. Kh6
{[%clk 0:00:02.6]} 45... Kf7 {[%clk 0:00:02.4]} 46. Ra6 {[%clk 0:00:03.3]} 46...
Rf3 {[%clk 0:00:02.5]} 47. Kg5 {[%clk 0:00:03.2]} 47... Rf5+ {[%clk 0:00:02.8]}
48. Kg4 {[%clk 0:00:03.6]} 48... Rxf6 {[%clk 0:00:03.7]} 49. Rxf6+ {[%clk
0:00:03.6]} 49... Kxf6 {[%clk 0:00:03.8]} 50. Kf4 {[%clk 0:00:04.5]} 50... g5+
{[%clk 0:00:04.4]} 51. Kg4 {[%clk 0:00:05]} 51... Kg6 {[%clk 0:00:05.3]} 52. Kg3
{[%clk 0:00:05.7]} 52... Kf5 {[%clk 0:00:05.9]} 53. Kf3 {[%clk 0:00:06.2]} 53...
g4+ {[%clk 0:00:06.3]} 54. Kg3 {[%clk 0:00:06.7]} 54... Kg5 {[%clk 0:00:06.5]}
55. Kg2 {[%clk 0:00:07.6]} 55... Kf4 {[%clk 0:00:07.1]} 56. Kf2 {[%clk
0:00:07.9]} 56... g3+ {[%clk 0:00:07.7]} 57. Kg2 {[%clk 0:00:08.5]} 57... Kg4
{[%clk 0:00:08.4]} 58. Kg1 {[%clk 0:00:09]} 58... Kf3 {[%clk 0:00:09]} 59. Kf1
{[%clk 0:00:09]} 59... Kg4 {[%clk 0:00:09.4]} 60. Kg2 {[%clk 0:00:09]} 60... Kf4
{[%clk 0:00:09.5]} 61. Kg1 {[%clk 0:00:09.1]} 61... Kf3 {[%clk 0:00:10.4]} 62.
Kf1 {[%clk 0:00:09.2]} 62... g2+ {[%clk 0:00:11.3]} 63. Kg1 {[%clk 0:00:09.8]}
63... Ke3 {[%clk 0:00:11.3]} 64. Kxg2 {[%clk 0:00:10.7]} 1/2-1/2